[Event "Early-Titled-Tuesday-Blitz-January-23-2024"]
[Site "Chess.com"]
[Date "2024.01.23"]
[Round "4"]
[White "Andrej2004"]
[Black "Boninknights"]
[Result "1-0"]
[WhiteElo "2634"]
[BlackElo "2352"]
[TimeControl "180+1"]
[EndTime "8:37:54 PST"]
[Termination "Andrej2004 won by resignation"]

1. Nf3 {[%clk 0:03:00.9]} 1... Nf6 {[%clk 0:02:58.9]} 2. c4 {[%clk 0:03:00.7]}
2... g6 {[%clk 0:02:57]} 3. b3 {[%clk 0:03:01]} 3... Bg7 {[%clk 0:02:56.9]} 4.
Bb2 {[%clk 0:03:01.7]} 4... O-O {[%clk 0:02:56.1]} 5. g3 {[%clk 0:03:02.3]} 5...
b6 {[%clk 0:02:53.3]} 6. Bg2 {[%clk 0:03:02.4]} 6... Bb7 {[%clk 0:02:53.2]} 7.
O-O {[%clk 0:03:03.1]} 7... c5 {[%clk 0:02:52.4]} 8. Nc3 {[%clk 0:02:57.6]} 8...
Na6 {[%clk 0:02:49.8]} 9. e3 {[%clk 0:02:57.5]} 9... d5 {[%clk 0:02:47.2]} 10.
Ne5 {[%clk 0:02:33.1]} 10... e6 {[%clk 0:02:41.7]} 11. d4 {[%clk 0:02:29.8]}
11... Qe7 {[%clk 0:02:34.6]} 12. dxc5 {[%clk 0:02:22]} 12... Nxc5 {[%clk
0:02:27.1]} 13. cxd5 {[%clk 0:02:21.2]} 13... exd5 {[%clk 0:02:18.6]} 14. Nf3
{[%clk 0:02:15]} 14... Rfd8 {[%clk 0:02:12.3]} 15. Nd4 {[%clk 0:02:13.1]} 15...
Nfe4 {[%clk 0:02:08.6]} 16. Nxe4 {[%clk 0:01:27.3]} 16... dxe4 {[%clk
0:02:04.2]} 17. Ba3 {[%clk 0:01:16.1]} 17... Qe5 {[%clk 0:01:52.1]} 18. b4
{[%clk 0:01:07.5]} 18... Nd3 {[%clk 0:01:49.5]} 19. Qa4 {[%clk 0:01:06.9]} 19...
Qd5 {[%clk 0:01:38.6]} 20. Rad1 {[%clk 0:01:05.1]} 20... Qxa2 {[%clk 0:01:31]}
21. Rxd3 {[%clk 0:01:01.9]} 21... exd3 {[%clk 0:01:20.8]} 22. Bxb7 {[%clk
0:01:01.8]} 22... Rab8 {[%clk 0:01:14.4]} 23. Nc6 {[%clk 0:00:52.2]} 23... Bb2
{[%clk 0:01:00.3]} 24. Nxd8 {[%clk 0:00:50.9]} 24... Rxd8 {[%clk 0:00:51.8]} 25.
Qxa7 {[%clk 0:00:38.9]} 25... Qxa3 {[%clk 0:00:41]} 26. Qxb6 {[%clk 0:00:37.7]}
26... Rf8 {[%clk 0:00:31.7]} 27. b5 {[%clk 0:00:34.4]} 27... d2 {[%clk
0:00:25.4]} 28. Bf3 {[%clk 0:00:34]} 28... Bg7 {[%clk 0:00:19.4]} 29. Qc6 {[%clk
0:00:32.1]} 29... Qb2 {[%clk 0:00:15.7]} 30. b6 {[%clk 0:00:31.8]} 30... Rb8
{[%clk 0:00:14.8]} 31. b7 {[%clk 0:00:31.9]} 31... Bc3 {[%clk 0:00:12.2]} 32.
Qc8+ {[%clk 0:00:31.6]} 1-0

[Event "Early-Titled-Tuesday-Blitz-January-23-2024"]
[Site "Chess.com"]
[Date "2024.01.23"]
[Round "4"]
[White "Arlo2024"]
[Black "SirStrateg"]
[Result "0-1"]
[WhiteElo "2304"]
[BlackElo "2630"]
[TimeControl "180+1"]
[EndTime "8:37:58 PST"]
[Termination "SirStrateg won on time"]

1. e4 {[%clk 0:03:00.9]} 1... d6 {[%clk 0:02:56.8]} 2. d4 {[%clk 0:02:59.8]}
2... Nf6 {[%clk 0:02:57.2]} 3. Nc3 {[%clk 0:02:59.4]} 3... c6 {[%clk 0:02:57.6]}
4. Nf3 {[%clk 0:02:57.4]} 4... Bg4 {[%clk 0:02:57.4]} 5. h3 {[%clk 0:02:53.3]}
5... Bh5 {[%clk 0:02:56.4]} 6. Bd3 {[%clk 0:02:46.3]} 6... e6 {[%clk 0:02:56.4]}
7. Ne2 {[%clk 0:02:45.6]} 7... Bxf3 {[%clk 0:02:55.3]} 8. gxf3 {[%clk
0:02:46.5]} 8... d5 {[%clk 0:02:55.8]} 9. e5 {[%clk 0:02:39.8]} 9... Nh5 {[%clk
0:02:55.3]} 10. h4 {[%clk 0:02:20.3]} 10... g6 {[%clk 0:02:52.7]} 11. Ng3 {[%clk
0:02:15.3]} 11... Nxg3 {[%clk 0:02:51.6]} 12. fxg3 {[%clk 0:02:15.2]} 12... h5
{[%clk 0:02:52]} 13. f4 {[%clk 0:02:10.8]} 13... Qb6 {[%clk 0:02:50.9]} 14. c3
{[%clk 0:02:09.3]} 14... c5 {[%clk 0:02:51.3]} 15. Be3 {[%clk 0:01:50]} 15...
Qxb2 {[%clk 0:02:45.8]} 16. O-O {[%clk 0:01:44.4]} 16... c4 {[%clk 0:02:33.6]}
17. Qc2 {[%clk 0:01:11.8]} 17... Qxc2 {[%clk 0:02:26.8]} 18. Bxc2 {[%clk
0:01:12.7]} 18... Nc6 {[%clk 0:02:25.7]} 19. Rfb1 {[%clk 0:01:08.2]} 19... O-O-O
{[%clk 0:02:20.6]} 20. a4 {[%clk 0:01:05.2]} 20... Be7 {[%clk 0:01:59.3]} 21.
Rb5 {[%clk 0:00:58.4]} 21... Kc7 {[%clk 0:01:56.6]} 22. Rab1 {[%clk 0:00:56.3]}
22... Rb8 {[%clk 0:01:56.8]} 23. a5 {[%clk 0:00:47.7]} 23... a6 {[%clk
0:01:54.7]} 24. Rb6 {[%clk 0:00:41.7]} 24... Nxa5 {[%clk 0:01:54.6]} 25. Bxg6
{[%clk 0:00:26.8]} 25... fxg6 {[%clk 0:01:47]} 26. Rxe6 {[%clk 0:00:26.3]} 26...
Kd7 {[%clk 0:01:47.4]} 27. Rxg6 {[%clk 0:00:21.5]} 27... Rbg8 {[%clk 0:01:46.9]}
28. Rxg8 {[%clk 0:00:13.3]} 28... Rxg8 {[%clk 0:01:47.2]} 29. Kh2 {[%clk
0:00:13.5]} 29... b5 {[%clk 0:01:37.7]} 30. f5 {[%clk 0:00:13.4]} 30... Nc6
{[%clk 0:01:34.3]} 31. Ra1 {[%clk 0:00:12.9]} 31... a5 {[%clk 0:01:34.3]} 32.
e6+ {[%clk 0:00:09.7]} 32... Ke8 {[%clk 0:01:29.6]} 33. Rf1 {[%clk 0:00:09.2]}
33... Bf6 {[%clk 0:01:25.9]} 34. Bg5 {[%clk 0:00:08.9]} 34... Ke7 {[%clk
0:01:22.7]} 35. Kh3 {[%clk 0:00:06.8]} 35... b4 {[%clk 0:01:17.7]} 36. g4 {[%clk
0:00:03.7]} 36... hxg4+ {[%clk 0:01:13.4]} 37. Kxg4 {[%clk 0:00:04.6]} 37...
bxc3 {[%clk 0:01:13.6]} 38. Kh5 {[%clk 0:00:02.5]} 38... Nxd4 {[%clk 0:01:10.9]}
39. Kh6 {[%clk 0:00:01.6]} 39... c2 {[%clk 0:01:01]} 40. Rg1 {[%clk 0:00:02.2]}
40... Nxf5+ {[%clk 0:00:58.1]} 41. Kh7 {[%clk 0:00:01.3]} 41... Rg7+ {[%clk
0:00:57.5]} 0-1

[Event "Early-Titled-Tuesday-Blitz-January-23-2024"]
[Site "Chess.com"]
[Date "2024.01.23"]
[Round "4"]
[White "Duhless"]
[Black "sokidze"]
[Result "1-0"]
[WhiteElo "3130"]
[BlackElo "2834"]
[TimeControl "180+1"]
[EndTime "8:38:00 PST"]
[Termination "Duhless won on time"]

1. d4 {[%clk 0:02:56.6]} 1... d5 {[%clk 0:02:59.8]} 2. Nf3 {[%clk 0:02:56.6]}
2... Nf6 {[%clk 0:02:58.8]} 3. Bf4 {[%clk 0:02:57.2]} 3... e6 {[%clk 0:02:57.1]}
4. e3 {[%clk 0:02:57.3]} 4... Bd6 {[%clk 0:02:57.2]} 5. Nbd2 {[%clk 0:02:56.6]}
5... O-O {[%clk 0:02:56.8]} 6. Bd3 {[%clk 0:02:56.6]} 6... c5 {[%clk 0:02:57.3]}
7. c3 {[%clk 0:02:55.1]} 7... Bxf4 {[%clk 0:02:57.4]} 8. exf4 {[%clk 0:02:55.3]}
8... b6 {[%clk 0:02:58.1]} 9. h4 {[%clk 0:02:54.1]} 9... Ba6 {[%clk 0:02:54.8]}
10. Bxa6 {[%clk 0:02:33]} 10... Nxa6 {[%clk 0:02:54]} 11. h5 {[%clk 0:02:33.9]}
11... h6 {[%clk 0:02:44.7]} 12. Ne5 {[%clk 0:02:34]} 12... cxd4 {[%clk
0:02:32.2]} 13. cxd4 {[%clk 0:02:32.7]} 13... Ne4 {[%clk 0:02:04.5]} 14. Qa4
{[%clk 0:02:15.2]} 14... Nc7 {[%clk 0:01:39.5]} 15. Rc1 {[%clk 0:02:08.2]} 15...
Rc8 {[%clk 0:01:22.1]} 16. Ndf3 {[%clk 0:01:23.1]} 16... a5 {[%clk 0:00:26.1]}
17. O-O {[%clk 0:01:07.4]} 17... f6 {[%clk 0:00:26.3]} 18. Nc6 {[%clk
0:00:47.2]} 18... Qd7 {[%clk 0:00:22.3]} 19. Rc2 {[%clk 0:00:40.5]} 19... Na6
{[%clk 0:00:14.6]} 20. Rfc1 {[%clk 0:00:38.7]} 20... Nac5 {[%clk 0:00:04.8]} 21.
dxc5 {[%clk 0:00:32.2]} 21... Nxc5 {[%clk 0:00:05.3]} 22. Rxc5 {[%clk
0:00:30.1]} 22... bxc5 {[%clk 0:00:05.2]} 23. Rxc5 {[%clk 0:00:31]} 23... Qd6
{[%clk 0:00:02.7]} 24. Qc2 {[%clk 0:00:30.1]} 24... Rc7 {[%clk 0:00:01.4]} 25.
Nfd4 {[%clk 0:00:30.3]} 25... Qxf4 {[%clk 0:00:01.3]} 26. Nxe6 {[%clk
0:00:29.3]} 1-0

[Event "Early-Titled-Tuesday-Blitz-January-23-2024"]
[Site "Chess.com"]
[Date "2024.01.23"]
[Round "4"]
[White "Muslim_player_05"]
[Black "Meri-Arabidze"]
[Result "0-1"]
[WhiteElo "2523"]
[BlackElo "2716"]
[TimeControl "180+1"]
[EndTime "8:38:02 PST"]
[Termination "Meri-Arabidze won by resignation"]

1. d4 {[%clk 0:03:00.9]} 1... Nf6 {[%clk 0:02:56.4]} 2. c4 {[%clk 0:03:01.3]}
2... e6 {[%clk 0:02:56.7]} 3. Nc3 {[%clk 0:03:01.4]} 3... Bb4 {[%clk 0:02:57.3]}
4. e3 {[%clk 0:03:01.9]} 4... b6 {[%clk 0:02:55.5]} 5. Bd3 {[%clk 0:03:01]} 5...
Bb7 {[%clk 0:02:55.8]} 6. Nf3 {[%clk 0:03:01.3]} 6... O-O {[%clk 0:02:53.4]} 7.
Bd2 {[%clk 0:03:01.1]} 7... d5 {[%clk 0:02:53.3]} 8. cxd5 {[%clk 0:03:00.5]}
8... exd5 {[%clk 0:02:54.2]} 9. Rc1 {[%clk 0:03:00.7]} 9... a6 {[%clk
0:02:53.1]} 10. O-O {[%clk 0:02:59.3]} 10... Bd6 {[%clk 0:02:53.8]} 11. Ne5
{[%clk 0:02:58.7]} 11... Nbd7 {[%clk 0:02:52.7]} 12. f4 {[%clk 0:02:58.3]} 12...
c5 {[%clk 0:02:49.9]} 13. Qf3 {[%clk 0:02:53.5]} 13... Qe7 {[%clk 0:02:41.2]}
14. g4 {[%clk 0:02:46.7]} 14... cxd4 {[%clk 0:02:18.1]} 15. exd4 {[%clk
0:02:44.9]} 15... Bb4 {[%clk 0:02:18]} 16. g5 {[%clk 0:02:28.8]} 16... Ne4
{[%clk 0:02:16]} 17. Nxd5 {[%clk 0:01:36]} 17... Bxd5 {[%clk 0:02:05.9]} 18.
Bxb4 {[%clk 0:01:35]} 18... Qxb4 {[%clk 0:02:04.5]} 19. Bxe4 {[%clk 0:01:34.8]}
19... Qxd4+ {[%clk 0:02:04.4]} 20. Rf2 {[%clk 0:01:13]} 20... Bxe4 {[%clk
0:02:01.8]} 21. Nc6 {[%clk 0:01:01.6]} 21... Bxc6 {[%clk 0:01:53]} 22. Rxc6
{[%clk 0:00:53.1]} 22... g6 {[%clk 0:01:48.7]} 23. Kg2 {[%clk 0:00:51.9]} 23...
Rfe8 {[%clk 0:01:44.2]} 24. Rcc2 {[%clk 0:00:43.4]} 24... Nc5 {[%clk 0:01:42.9]}
25. Rce2 {[%clk 0:00:37.3]} 25... Rad8 {[%clk 0:01:39.5]} 26. Rxe8+ {[%clk
0:00:25.6]} 26... Rxe8 {[%clk 0:01:40.4]} 27. h4 {[%clk 0:00:23.9]} 27... Qe4
{[%clk 0:01:40.2]} 28. h5 {[%clk 0:00:22.2]} 28... gxh5 {[%clk 0:01:38.9]} 29.
b4 {[%clk 0:00:20.4]} 29... Qxf3+ {[%clk 0:01:34.4]} 30. Kxf3 {[%clk 0:00:21.3]}
30... Nd3 {[%clk 0:01:33.2]} 31. Rh2 {[%clk 0:00:18.8]} 31... Nxb4 {[%clk
0:01:32.6]} 32. Rxh5 {[%clk 0:00:19.5]} 32... Nxa2 {[%clk 0:01:32.5]} 33. Rh6
{[%clk 0:00:20.2]} 33... Re6 {[%clk 0:01:31.4]} 34. Rh2 {[%clk 0:00:20.8]} 34...
Nb4 {[%clk 0:01:30.3]} 35. Rd2 {[%clk 0:00:20.7]} 35... a5 {[%clk 0:01:24.8]}
36. f5 {[%clk 0:00:21]} 36... Re8 {[%clk 0:01:25.5]} 37. Rd6 {[%clk 0:00:19.8]}
37... Rb8 {[%clk 0:01:24.9]} 38. Kf4 {[%clk 0:00:16.7]} 38... b5 {[%clk
0:01:12.6]} 39. Ke5 {[%clk 0:00:14.7]} 39... a4 {[%clk 0:01:11]} 40. g6 {[%clk
0:00:10.6]} 40... hxg6 {[%clk 0:01:09.1]} 41. fxg6 {[%clk 0:00:07.8]} 41... a3
{[%clk 0:01:09.3]} 42. Kf6 {[%clk 0:00:05.6]} 42... a2 {[%clk 0:01:02]} 43.
gxf7+ {[%clk 0:00:05.4]} 43... Kf8 {[%clk 0:01:02.4]} 44. Rd1 {[%clk 0:00:04.8]}
44... Rb6+ {[%clk 0:01:01.5]} 0-1

[Event "Early-Titled-Tuesday-Blitz-January-23-2024"]
[Site "Chess.com"]
[Date "2024.01.23"]
[Round "4"]
[White "Flawless_Fighter"]
[Black "Maus7"]
[Result "1-0"]
[WhiteElo "2721"]
[BlackElo "2525"]
[TimeControl "180+1"]
[EndTime "8:38:05 PST"]
[Termination "Flawless_Fighter won by resignation"]

1. e4 {[%clk 0:03:00.9]} 1... c6 {[%clk 0:03:00]} 2. d4 {[%clk 0:03:00.4]} 2...
d5 {[%clk 0:03:00.9]} 3. e5 {[%clk 0:02:59.8]} 3... Bf5 {[%clk 0:03:00.1]} 4.
Nf3 {[%clk 0:03:00.4]} 4... e6 {[%clk 0:03:00.3]} 5. Be2 {[%clk 0:03:00.4]} 5...
Nd7 {[%clk 0:03:00.2]} 6. O-O {[%clk 0:03:00.9]} 6... a5 {[%clk 0:03:00.7]} 7.
a4 {[%clk 0:02:58.6]} 7... Nh6 {[%clk 0:03:00.9]} 8. Bxh6 {[%clk 0:02:55.3]}
8... gxh6 {[%clk 0:03:01.2]} 9. h3 {[%clk 0:02:45.6]} 9... Bg7 {[%clk
0:03:00.6]} 10. Bd3 {[%clk 0:02:44.9]} 10... Bg6 {[%clk 0:02:54.3]} 11. c4
{[%clk 0:02:34.7]} 11... O-O {[%clk 0:02:49]} 12. Nc3 {[%clk 0:02:34.7]} 12...
f6 {[%clk 0:02:09.8]} 13. cxd5 {[%clk 0:02:32.6]} 13... cxd5 {[%clk 0:02:08.7]}
14. exf6 {[%clk 0:02:28.7]} 14... Qxf6 {[%clk 0:02:06.6]} 15. Bxg6 {[%clk
0:02:15.7]} 15... hxg6 {[%clk 0:02:04.2]} 16. Qe2 {[%clk 0:02:13.9]} 16... Ra6
{[%clk 0:01:30.5]} 17. Rad1 {[%clk 0:02:09.5]} 17... Rb6 {[%clk 0:01:29.2]} 18.
Nb5 {[%clk 0:02:01.8]} 18... g5 {[%clk 0:01:18.6]} 19. Rd3 {[%clk 0:01:58.9]}
19... h5 {[%clk 0:01:16.2]} 20. Nh2 {[%clk 0:01:50.2]} 20... Qg6 {[%clk
0:01:14.8]} 21. Re1 {[%clk 0:01:46.9]} 21... Rf4 {[%clk 0:01:14.2]} 22. b3
{[%clk 0:01:38]} 22... Rc6 {[%clk 0:01:07.8]} 23. Re3 {[%clk 0:01:33.8]} 23...
Bxd4 {[%clk 0:00:55.8]} 24. Nxd4 {[%clk 0:01:32.3]} 24... Rxd4 {[%clk
0:00:56.7]} 25. Nf3 {[%clk 0:01:30.4]} 25... Re4 {[%clk 0:00:47.9]} 26. Rxe4
{[%clk 0:01:29.7]} 26... Qxe4 {[%clk 0:00:48.8]} 27. Qxe4 {[%clk 0:01:30]} 27...
dxe4 {[%clk 0:00:49.7]} 28. Rxe4 {[%clk 0:01:30.7]} 28... Nc5 {[%clk 0:00:34.1]}
29. Re5 {[%clk 0:01:26.6]} 29... g4 {[%clk 0:00:30.7]} 30. Nd4 {[%clk
0:01:24.6]} 30... Rd6 {[%clk 0:00:27.7]} 31. Rxc5 {[%clk 0:00:43.5]} 31... Rxd4
{[%clk 0:00:28.2]} 32. Rxh5 {[%clk 0:00:43.7]} 32... Rb4 {[%clk 0:00:14.2]} 33.
hxg4 {[%clk 0:00:39.1]} 33... Rxb3 {[%clk 0:00:14]} 34. Rxa5 {[%clk 0:00:38.9]}
34... Kf7 {[%clk 0:00:09.4]} 35. Rb5 {[%clk 0:00:35.2]} 1-0

[Event "Early-Titled-Tuesday-Blitz-January-23-2024"]
[Site "Chess.com"]
[Date "2024.01.23"]
[Round "4"]
[White "norwaytoadog"]
[Black "mortngabriel"]
[Result "0-1"]
[WhiteElo "2284"]
[BlackElo "2518"]
[TimeControl "180+1"]
[EndTime "8:38:06 PST"]
[Termination "mortngabriel won on time"]

1. e4 {[%clk 0:02:59.1]} 1... e5 {[%clk 0:02:59.5]} 2. Nf3 {[%clk 0:02:59.4]}
2... Nc6 {[%clk 0:02:59.7]} 3. Bb5 {[%clk 0:02:59.7]} 3... a6 {[%clk 0:03:00]}
4. Ba4 {[%clk 0:03:00]} 4... Nf6 {[%clk 0:02:57.9]} 5. O-O {[%clk 0:02:59.3]}
5... Be7 {[%clk 0:02:55.8]} 6. Re1 {[%clk 0:02:59.4]} 6... b5 {[%clk 0:02:55.7]}
7. Bb3 {[%clk 0:03:00]} 7... d6 {[%clk 0:02:56.6]} 8. c3 {[%clk 0:02:59.6]} 8...
O-O {[%clk 0:02:52.3]} 9. h3 {[%clk 0:03:00]} 9... Nb8 {[%clk 0:02:51.5]} 10. d4
{[%clk 0:02:59.9]} 10... Nbd7 {[%clk 0:02:51.8]} 11. Nbd2 {[%clk 0:03:00.2]}
11... Bb7 {[%clk 0:02:51.9]} 12. Bc2 {[%clk 0:02:59]} 12... Re8 {[%clk
0:02:51.2]} 13. Nf1 {[%clk 0:02:56.8]} 13... Bf8 {[%clk 0:02:51.2]} 14. Ng3
{[%clk 0:02:57.3]} 14... g6 {[%clk 0:02:51.2]} 15. a4 {[%clk 0:02:55.7]} 15...
c5 {[%clk 0:02:50.1]} 16. d5 {[%clk 0:02:55.7]} 16... c4 {[%clk 0:02:50.3]} 17.
Bg5 {[%clk 0:02:55.7]} 17... Nc5 {[%clk 0:02:49.1]} 18. Qd2 {[%clk 0:02:48.4]}
18... Be7 {[%clk 0:02:45.7]} 19. Rf1 {[%clk 0:02:18.1]} 19... Nfd7 {[%clk
0:02:25.5]} 20. Bh6 {[%clk 0:02:10.1]} 20... bxa4 {[%clk 0:02:24.2]} 21. Bxa4
{[%clk 0:02:03.1]} 21... Nxa4 {[%clk 0:02:24]} 22. Rxa4 {[%clk 0:02:03.3]} 22...
a5 {[%clk 0:02:22.4]} 23. Rfa1 {[%clk 0:01:58.4]} 23... Nc5 {[%clk 0:02:13.4]}
24. Rxc4 {[%clk 0:01:32.9]} 24... Nb3 {[%clk 0:02:03.9]} 25. Qd1 {[%clk
0:01:32.7]} 25... Nxa1 {[%clk 0:02:02.6]} 26. Qxa1 {[%clk 0:01:32.4]} 26... Ba6
{[%clk 0:01:57.4]} 27. Ra4 {[%clk 0:01:28.7]} 27... Bb5 {[%clk 0:01:57.6]} 28.
Ra3 {[%clk 0:01:24.7]} 28... a4 {[%clk 0:01:56.7]} 29. Nd2 {[%clk 0:01:09.5]}
29... Bg5 {[%clk 0:01:39.2]} 30. Bxg5 {[%clk 0:01:08.5]} 30... Qxg5 {[%clk
0:01:40.1]} 31. Qd1 {[%clk 0:01:03.4]} 31... Reb8 {[%clk 0:01:34]} 32. c4 {[%clk
0:00:46.2]} 32... Bd7 {[%clk 0:01:33.1]} 33. Nf3 {[%clk 0:00:40.4]} 33... Qd8
{[%clk 0:01:22.4]} 34. Qc2 {[%clk 0:00:31.5]} 34... Qc7 {[%clk 0:01:17.6]} 35.
Qc1 {[%clk 0:00:20.4]} 35... f6 {[%clk 0:01:12.7]} 36. Qh6 {[%clk 0:00:13.6]}
36... Be8 {[%clk 0:01:12.1]} 37. Nh4 {[%clk 0:00:09.8]} 37... Rxb2 {[%clk
0:01:01.7]} 38. Ngf5 {[%clk 0:00:07.4]} 38... Rb3 {[%clk 0:00:54.3]} 39. Ra2
{[%clk 0:00:04.1]} 39... a3 {[%clk 0:00:54.3]} 40. g4 {[%clk 0:00:02.3]} 40...
Rb2 {[%clk 0:00:52.7]} 41. g5 {[%clk 0:00:01.7]} 41... fxg5 {[%clk 0:00:50.9]}
0-1

[Event "Early-Titled-Tuesday-Blitz-January-23-2024"]
[Site "Chess.com"]
[Date "2024.01.23"]
[Round "4"]
[White "EdmundPlayer"]
[Black "EvilMorty23"]
[Result "0-1"]
[WhiteElo "2253"]
[BlackElo "2509"]
[TimeControl "180+1"]
[EndTime "8:38:08 PST"]
[Termination "EvilMorty23 won on time"]

1. Nc3 {[%clk 0:03:00.9]} 1... d5 {[%clk 0:02:58.5]} 2. e4 {[%clk 0:03:00.1]}
2... dxe4 {[%clk 0:02:57.9]} 3. Nxe4 {[%clk 0:03:00.2]} 3... Nf6 {[%clk
0:02:58.8]} 4. Ng3 {[%clk 0:02:54.8]} 4... e5 {[%clk 0:02:57.7]} 5. Bc4 {[%clk
0:02:53.6]} 5... e4 {[%clk 0:02:46.4]} 6. d3 {[%clk 0:02:22.2]} 6... Bc5 {[%clk
0:02:36.7]} 7. Bg5 {[%clk 0:02:03.6]} 7... exd3 {[%clk 0:01:42.1]} 8. Qxd3
{[%clk 0:01:51.7]} 8... Bxf2+ {[%clk 0:01:38.9]} 9. Kxf2 {[%clk 0:01:44]} 9...
Ng4+ {[%clk 0:01:39.2]} 10. Kf1 {[%clk 0:01:39.3]} 10... Qxg5 {[%clk 0:01:39.2]}
11. Nf3 {[%clk 0:01:35.5]} 11... Qc5 {[%clk 0:01:23.4]} 12. Re1+ {[%clk
0:01:33.7]} 12... Be6 {[%clk 0:01:23.7]} 13. Ne4 {[%clk 0:01:15.9]} 13... Qxc4
{[%clk 0:01:22.1]} 14. Nf6+ {[%clk 0:00:46.1]} 14... Nxf6 {[%clk 0:01:04.4]} 15.
Qxc4 {[%clk 0:00:45.4]} 15... O-O {[%clk 0:01:05.3]} 16. Rxe6 {[%clk 0:00:41.4]}
16... fxe6 {[%clk 0:01:05.3]} 17. Qxe6+ {[%clk 0:00:42.1]} 17... Kh8 {[%clk
0:01:05.8]} 18. Ng5 {[%clk 0:00:35.9]} 18... h6 {[%clk 0:01:02.3]} 19. Nf7+
{[%clk 0:00:23.6]} 19... Kh7 {[%clk 0:01:00.2]} 20. Ke2 {[%clk 0:00:14.2]} 20...
Nc6 {[%clk 0:00:59.6]} 21. Kd2 {[%clk 0:00:12.1]} 21... Rae8 {[%clk 0:00:56.6]}
22. Qc4 {[%clk 0:00:09.9]} 22... Re7 {[%clk 0:00:50.1]} 23. Re1 {[%clk
0:00:06.7]} 23... Rexf7 {[%clk 0:00:45.6]} 24. a4 {[%clk 0:00:05.5]} 24... Rd8+
{[%clk 0:00:42.6]} 25. Kc1 {[%clk 0:00:05.8]} 25... Rfd7 {[%clk 0:00:43.5]} 26.
a5 {[%clk 0:00:05.2]} 26... Nd4 {[%clk 0:00:39.9]} 27. Qf1 {[%clk 0:00:04.5]}
27... Kh8 {[%clk 0:00:37.6]} 28. c3 {[%clk 0:00:04.6]} 28... Nb3+ {[%clk
0:00:37.8]} 29. Kc2 {[%clk 0:00:05]} 29... Nxa5 {[%clk 0:00:36.6]} 30. Qf5
{[%clk 0:00:05.6]} 30... Nc4 {[%clk 0:00:36.4]} 31. Qe6 {[%clk 0:00:06]} 31...
b5 {[%clk 0:00:36.1]} 32. Qc6 {[%clk 0:00:05.8]} 32... Rd2+ {[%clk 0:00:35.9]}
33. Kc1 {[%clk 0:00:04.9]} 33... Nxb2 {[%clk 0:00:33.4]} 34. Re7 {[%clk
0:00:04.2]} 34... Rf2 {[%clk 0:00:30.8]} 35. Re1 {[%clk 0:00:01.2]} 35... Nd3+
{[%clk 0:00:30.3]} 0-1

[Event "Early-Titled-Tuesday-Blitz-January-23-2024"]
[Site "Chess.com"]
[Date "2024.01.23"]
[Round "4"]
[White "brm72"]
[Black "chessS1r"]
[Result "1-0"]
[WhiteElo "2697"]
[BlackElo "2469"]
[TimeControl "180+1"]
[EndTime "8:38:09 PST"]
[Termination "brm72 won by resignation"]

1. e4 {[%clk 0:03:00.9]} 1... c6 {[%clk 0:02:59.6]} 2. d4 {[%clk 0:03:00.6]}
2... d5 {[%clk 0:03:00.5]} 3. e5 {[%clk 0:03:01.3]} 3... c5 {[%clk 0:03:00.7]}
4. dxc5 {[%clk 0:03:01]} 4... e6 {[%clk 0:03:00.7]} 5. a3 {[%clk 0:03:00.9]}
5... Bxc5 {[%clk 0:03:00.4]} 6. Nf3 {[%clk 0:03:01.2]} 6... f6 {[%clk 0:03:00]}
7. b4 {[%clk 0:02:51.4]} 7... Be7 {[%clk 0:02:57.5]} 8. c4 {[%clk 0:02:50.4]}
8... fxe5 {[%clk 0:02:22.8]} 9. Nxe5 {[%clk 0:02:44.6]} 9... Bf6 {[%clk
0:02:16.4]} 10. Bb2 {[%clk 0:02:43.9]} 10... Nd7 {[%clk 0:02:15.4]} 11. Qe2
{[%clk 0:01:48.8]} 11... Nxe5 {[%clk 0:02:06.1]} 12. Bxe5 {[%clk 0:01:49.7]}
12... Bxe5 {[%clk 0:02:07]} 13. Qxe5 {[%clk 0:01:50.6]} 13... Qf6 {[%clk
0:02:07.4]} 14. Qxf6 {[%clk 0:01:45.7]} 14... Nxf6 {[%clk 0:02:08.3]} 15. Nc3
{[%clk 0:01:43.8]} 15... Kf7 {[%clk 0:01:54.4]} 16. cxd5 {[%clk 0:01:41.5]}
16... exd5 {[%clk 0:01:54.6]} 17. O-O-O {[%clk 0:01:41.5]} 17... Bf5 {[%clk
0:01:43.2]} 18. f3 {[%clk 0:01:25.5]} 18... Rac8 {[%clk 0:01:42.5]} 19. Kb2
{[%clk 0:01:25.5]} 19... Rhd8 {[%clk 0:01:16.9]} 20. Bd3 {[%clk 0:01:17.1]}
20... Bxd3 {[%clk 0:01:00.6]} 21. Rxd3 {[%clk 0:01:17]} 21... Rd6 {[%clk
0:00:49.1]} 22. Rhd1 {[%clk 0:01:16.5]} 22... Rcd8 {[%clk 0:00:47.5]} 23. Nb5
{[%clk 0:01:15.9]} 23... Ra6 {[%clk 0:00:46.9]} 24. Kb3 {[%clk 0:01:13.3]} 24...
Rb6 {[%clk 0:00:36.6]} 25. Nc3 {[%clk 0:01:09.6]} 25... Rbd6 {[%clk 0:00:36.2]}
26. a4 {[%clk 0:01:09]} 26... a6 {[%clk 0:00:36.5]} 27. a5 {[%clk 0:01:00.7]}
27... Ke6 {[%clk 0:00:35.9]} 28. Na4 {[%clk 0:01:00.7]} 28... Nd7 {[%clk
0:00:34.6]} 29. Re1+ {[%clk 0:00:58.7]} 29... Kf7 {[%clk 0:00:33.9]} 30. Rd4
{[%clk 0:00:57.4]} 30... Nb8 {[%clk 0:00:32.1]} 31. Nc5 {[%clk 0:00:48.6]} 31...
Nc6 {[%clk 0:00:32.2]} 32. Rd3 {[%clk 0:00:48.5]} 32... Rb8 {[%clk 0:00:29.2]}
33. Red1 {[%clk 0:00:40.6]} 33... Ne7 {[%clk 0:00:28.4]} 34. g4 {[%clk 0:00:35]}
34... b5 {[%clk 0:00:28.3]} 35. h4 {[%clk 0:00:28]} 35... Rbd8 {[%clk
0:00:27.3]} 36. Nb7 {[%clk 0:00:24.5]} 36... R6d7 {[%clk 0:00:27]} 37. Nxd8+
{[%clk 0:00:24.7]} 37... Rxd8 {[%clk 0:00:27.9]} 38. Rc1 {[%clk 0:00:24.8]}
38... Rd6 {[%clk 0:00:27.6]} 39. Rc7 {[%clk 0:00:24.6]} 39... Ke6 {[%clk
0:00:27.6]} 40. Re3+ {[%clk 0:00:23.8]} 40... Kf6 {[%clk 0:00:25.5]} 41. Rexe7
{[%clk 0:00:23.9]} 1-0